Cogmind - Beta 14 @@@ ROGUE MODE // 2025.03.24 @ 23:54:40 Player: SelfCookedBird Result: Destroyed by G-47 Trooper with Particle Gun Performance ------------- Evolutions (2) 1000 Regions Visited (3) 600 Robots Destroyed (21) 105 Value Destroyed (709) 709 Prototype IDs (1) 20 Alien Tech Used (0) 0 Bonus (0) 0 TOTAL SCORE: 2434 Bonus ------- None Cogmind --------- Core Integrity 0/550 Matter 300/300 Energy 100/100 System Corruption 0% Temperature Cool (18) Movement Core (50) Location -8/Materials Parts ------- > --- POWER (1) -------- (None) > --- PROPULSION (4) --- (None) > --- UTILITY (3) ------ Signal Interpreter Melee Analysis Suite > --- WEAPON (3) ------- (None) > --- INVENTORY (5) ---- (None) Peak State ------------ > --- POWER ------------ (None) > --- PROPULSION ------- Aluminum Leg Aluminum Leg Aluminum Leg Titanium Leg > --- UTILITY ---------- Signal Interpreter Shock Absorption System Tractor Beam > --- WEAPON ----------- Katana Spear Spear > --- INVENTORY -------- Improved Ion Engine Flight Unit Flight Unit Flight Unit Melee Analysis Suite [Rating: 23] Favorites ----------- Power Ion Engine Engine Ion Engine Power Core Light Nuclear Core Propulsion Aluminum Leg Leg Aluminum Leg Hover Unit Improved Hover Unit Flight Unit Flight Unit Utility Signal Interpreter Device Heat Sink Storage Small Storage Unit Processor Signal Interpreter Protection Hardened Light Armor Plating Weapon EM Pulse Gun Energy Gun EM Pulse Gun Energy Cannon Light EM Pulse Cannon Ballistic Cannon Improved Light Cannon Launcher Grenade Launcher Slashing Weapon Katana Piercing Weapon Spear Build | -11 -10 -9 -8 ------- Run | Yrd Mat Mat Mat Slots Evolved 4 | . . 2 2 Power . | . . . . Propulsion 2 | . . 2 . Utility 1 | . . . 1 Weapon 1 | . . . 1 Parts Attached 48 | 6 4 16 22 Power 8 | 1 . 3 4 Engine 5 | 1 . 3 1 Core 3 | . . . 3 Reactor . | . . . . Propulsion 15 | 2 . 6 7 Treads . | . . . . Leg 9 | 2 . 1 6 Wheel . | . . . . Hover 1 | . . . 1 Flight 5 | . . 5 . Utility 11 | 1 3 2 5 Device 6 | . 2 1 3 Storage 2 | 1 1 . . Processor 2 | . . 1 1 Hackware . | . . . . Protection 1 | . . . 1 Artifact . | . . . . Weapon 14 | 2 1 5 6 Energy Gun 5 | 2 . 2 1 Energy Cannon 2 | . . 2 . Ballistic Gun . | . . . . Ballistic Cannon 2 | . . 1 1 Launcher 1 | . 1 . . Special Weapon . | . . . . Impact Weapon . | . . . . Slashing Weapon 1 | . . . 1 Piercing Weapon 3 | . . . 3 Special Melee Weapon . | . . . . Unidentified Prototypes 1 | . . 1 . Parts Lost 22 | . . 4 18 Power 5 | . . 1 4 Propulsion 7 | . . 1 6 Utility 5 | . . . 5 Weapon 5 | . . 2 3 Highest Loss Streak 9 | . . 4 9 To Critical Strikes . | . . . . Average Slot Usage (%) 87 | . 95 87 76 Engine 10 | . 14 10 5 Leg 17 | . 28 2 18 Flight 12 | . . 31 10 Device 8 | . 9 7 9 Storage 7 | . 14 5 . Processor 5 | . . 9 10 Energy Gun 8 | . 15 7 1 Energy Cannon 3 | . . 8 4 Ballistic Cannon 2 | . . 3 4 Launcher 5 | . 12 2 . Slashing Weapon 1 | . . . 4 Peak Build Rating 23 | 6 7 13 23 Average Rating 9 | 5 6 9 13 On Entrance 5 | . 6 7 10 Naked Turns . | . . . . Heaviest Build 25 | 14 21 25 19 Greatest Support 47 | 20 20 30 47 Greatest Overweight (x) 5 | 1 1 5 3 Average Overweight (x) . | . . . . Largest Inventory Capacity 10 | 8 10 10 5 Average Capacity 7 | 6 8 7 5 Most Carried 10 | 6 8 10 5 Average Carried 5 | 3 6 6 4 Final Capacity 10 | 8 10 5 5 Final Carried 8 | 6 8 5 . Class Distribution -------------------- 84% | Mutant 15% | Scavenger-Mutant Dominant Class ---------------- Mutant | -10/Materials Mutant | -9/Materials Scavenger-Mutant | -8/Materials Resources | -11 -10 -9 -8 ----------- Run | Yrd Mat Mat Mat Matter Collected 837 | 241 169 60 367 Remotely 75 | . . . 75 Salvage Created 836 | . 399 66 371 Parts 48 | . 17 10 21 Haulers Intercepted . | . . . . Recyclers Shooed . | . . . . Parts Field Recycled . | . . . . Retrieved Matter . | . . . . Parts Self-Destructed . | . . . . Prevented . | . . . . Kills | -11 -10 -9 -8 ------- Run | Yrd Mat Mat Mat Combat Hostiles Destroyed 14 | . 6 1 7 Melee 4 | . . . 4 Guns 3 | . 2 1 . Cannons 3 | . . . 3 AOE 4 | . 4 . . Classes Destroyed 6 | . 3 1 2 Worker 1 | . . . 1 Recycler 3 | . 3 . . Watcher 3 | . 1 2 . Grunt 11 | . 6 . 5 Duelist 1 | . . . 1 Sentry 2 | . . 1 1 Best Kill Streak 4 | . 4 1 2 Combat Bots Only 3 | . 3 1 2 Max Kills in Single Turn 2 | . 2 1 1 Gunslinging . | . . . . Exploded 1 | . 1 . . Melee 1 | . . . 1 Uniques/NPCs Destroyed . | . . . . Combat | -11 -10 -9 -8 -------- Run | Yrd Mat Mat Mat Hostile Shots Fired 172 | . 16 6 150 Missed 52 | . 6 2 44 Damage Taken 2234 | . 289 144 1801 Core 663 | . 52 50 561 Absorbed by Shields . | . . . . Core Remaining (%) 88 | 100 79 87 . Volleys Fired 46 | 5 14 5 22 Largest 2 | 1 2 2 2 Hottest 100 | 50 70 100 95 Shots Fired 80 | 5 28 10 37 Gun 32 | 5 14 8 5 Cannon 32 | . . . 32 Launcher 16 | . 14 2 . Special . | . . . . Kinetic 15 | . . . 15 Thermal 16 | 5 . 6 5 Explosive 16 | . 14 2 . Electromagnetic 33 | . 14 2 17 Robot Hit Streak 8 | . 8 4 7 Robot Miss Streak 5 | 5 2 3 3 Penetration Max . | . . . . Secondary Targets . | . . . . Shots Hit Robots 53 | . 20 4 29 Core Hits 36 | . 16 5 15 Critical Kills . | . . . . Critical Parts Destroyed . | . . . . Critical Strikes 5 | . . . 5 Blast 1 | . . . 1 Corrupt 1 | . . . 1 Sever 3 | . . . 3 Melee Attacks 14 | . . . 14 Impact . | . . . . Slashing 13 | . . . 13 Piercing 1 | . . . 1 Sneak Attacks . | . . . . Combat Hostiles . | . . . . Follow-up Attacks 1 | . . . 1 Damage Inflicted 1565 | . 686 119 760 Guns 249 | . 147 51 51 Cannons 405 | . . . 405 Explosions 607 | . 539 68 . Melee 278 | . . . 278 Ramming 26 | . . . 26 Kinetic 207 | . . . 207 Thermal 102 | . . 51 51 Explosive 607 | . 539 68 . Electromagnetic 345 | . 147 . 198 Impact . | . . . . Slashing 246 | . . . 246 Piercing 32 | . . . 32 Highest Corruption . | . . . . Average Corruption . | . . . . Corruption Purged . | . . . . Corruption Blocked . | . . . . Overload Shots . | . . . . Overflow Damage 99 | . 33 66 . Projectiles . | . . . . Explosions 99 | . 33 66 . Melee . | . . . . Knockbacks 2 | . . . 2 Impact . | . . . . Kinetic 2 | . . . 2 Secondary . | . . . . Self-Inflicted Damage 245 | . 155 86 4 Shots 6 | . 5 1 . Rammed 2 | . . . 2 Targets Rammed 9 | . . . 9 Kicked 7 | . . . 7 Crushed . | . . . . Highest Temperature 282 | 40 72 282 91 Average Temperature 40 | 15 26 89 25 Received Heat Transfer 1080 | . 81 18 981 Effects 1 | . . 1 . Interference 1 | . . 1 . Siege Activations . | . . . . Robots Corrupted . | . . . . Combat Hostiles . | . . . . Parts Fried 1 | . . . 1 Impact Corruptions . | . . . . Robots Melted . | . . . . Combat Hostiles . | . . . . Parts Melted . | . . . . Heat Transferred 259 | . . 148 111 Parts Sabotaged . | . . . . Parts Stolen . | . . . . Parts Stripped . | . . . . Power Chain Reactions . | . . . . Alert | -11 -10 -9 -8 ------- Run | Yrd Mat Mat Mat Peak Influence 273 | . 238 125 273 Initial 52 | . . 36 52 Average 105 | . 89 86 191 Maximum Alert Level 1 | . 1 . 1 Low Security (%) 83 | 100 94 100 42 Level 1 16 | . 5 . 57 Level 2 . | . . . . Level 3 . | . . . . Level 4 . | . . . . Level 5 . | . . . . High Security . | . . . . Max Security . | . . . . Squads Dispatched 4 | . 2 . 2 Investigation 1 | . 1 . . Extermination . | . . . . Reinforcement 3 | . 1 . 2 Assault . | . . . . Garrison . | . . . . Intercept . | . . . . Searches Triggered . | . . . . Construction Impeded . | . . . . Haulers Reinforced . | . . . . Active Scanning Responses . | . . . . Cargo Convoy Interrupts . | . . . . Stealth | -11 -10 -9 -8 --------- Run | Yrd Mat Mat Mat Distress Signals 1 | . 1 . . Communications Jammed . | . . . . Distress Signals . | . . . . Times Spotted 38 | . 8 4 26 Peak Tracking Total 7 | . 2 5 7 Tactical Retreats 4 | . . . 4 Traps | -11 -10 -9 -8 ------- Run | Yrd Mat Mat Mat Traps Triggered 1 | . 1 . . Indirectly . | . . . . Trap Hack Attempts . | . . . . Triggered . | . . . . Disarmed . | . . . . Reprogrammed . | . . . . Reused . | . . . . Traps Extracted . | . . . . Installed . | . . . . Triggered . | . . . . Machines | -11 -10 -9 -8 ---------- Run | Yrd Mat Mat Mat Machines Disabled 4 | . 2 1 1 Max in Single Turn 1 | . 1 1 1 Machines Repaired . | . . . . Machines Dismantled . | . . . . Machines Sabotaged . | . . . . Overloaded Fab Kills . | . . . . Hacking | -11 -10 -9 -8 --------- Run | Yrd Mat Mat Mat Machines Accessed 5 | . 2 3 . Terminals 3 | . 1 2 . Fabricators . | . . . . Repair Stations . | . . . . Recycling Units 2 | . 1 1 . Scanalyzers . | . . . . Garrison Access . | . . . . Total Hacks 12 | . 6 6 . Successful 8 | . 5 3 . Failed 4 | . 1 3 . Catastrophic . | . . . . Database Lockouts . | . . . . Manual . | . . . . Terminals 5 | . 1 4 . Fabricators . | . . . . Repair Stations . | . . . . Recycling Units 7 | . 5 2 . Scanalyzers . | . . . . Garrison Access . | . . . . Terminal Hacks 3 | . 1 2 . Record 2 | . 1 1 . Alert Level 1 | . . 1 . Fabricator Hacks . | . . . . Repair Station Hacks . | . . . . Recycling Unit Hacks 5 | . 4 1 . Recycle Component 2 | . 2 . . Process 2 | . 2 . . Report Inventory 1 | . . 1 . Scanalyzer . | . . . . Garrison Access Hacks . | . . . . Unauthorized Hacks . | . . . . Terminals . | . . . . Fabricators . | . . . . Repair Stations . | . . . . Recycling Units . | . . . . Scanalyzers . | . . . . Garrison Access . | . . . . Data Cores Recovered . | . . . . Used . | . . . . Hacking Detections 2 | . 1 1 . Full Trace Events . | . . . . Feedback Events . | . . . . Feedback Blocked . | . . . . Robot Schematics Acquired . | . . . . Robots Built . | . . . . Authchips . | . . . . Time . | . . . . Total Robot Build Rating . | . . . . Part Schematics Acquired . | . . . . Parts Built . | . . . . Authchips . | . . . . Time . | . . . . Total Part Build Rating . | . . . . Parts Repaired . | . . . . Time . | . . . . Parts Recycled 2 | . 2 . . Recycled Matter 35 | . 35 . . Retrieved Matter . | . . . . Retrieved Components . | . . . . Parts Scanalyzed . | . . . . Part Schematics Acquired . | . . . . Parts Damaged . | . . . . Bothacking | -11 -10 -9 -8 ------------ Run | Yrd Mat Mat Mat Used RIF Installer . | . . . . Robots Hacked . | . . . . Non-combat . | . . . . Combat . | . . . . Robot Hacks Applied . | . . . . Relay Couplers Released . | . . . . Fabnet Peak Effective % . | . . . . Robots Rewired . | . . . . Allies Hacked . | . . . . Hacks Repelled . | . . . . Allies | -11 -10 -9 -8 -------- Run | Yrd Mat Mat Mat Total Allies . | . . . . Largest Group . | . . . . Highest-Rated Group . | . . . . Highest-Rated Ally . | . . . . Total Orders . | . . . . Ally Attacks . | . . . . Total Damage . | . . . . Kills . | . . . . Allies Corrupted . | . . . . Allies Melted . | . . . . Intel | -11 -10 -9 -8 ------- Run | Yrd Mat Mat Mat Robot Analysis Total . | . . . . Derelict Logs Recovered . | . . . . Drone Launches . | . . . . Drone Recoveries . | . . . . Exploration | -11 -10 -9 -8 ------------- Run | Yrd Mat Mat Mat Turns Passed 1394 | 151 509 372 362 Spaces Moved 1220 | 111 352 395 362 Core 21 | 12 . . 9 Treads . | . . . . Legs 579 | 99 352 27 101 Wheels . | . . . . Hover . | . . . . Flight 620 | . . 368 252 Fastest Speed 34 | 50 120 34 34 Average Speed 90 | 113 123 81 59 Slowest Speed 440 | 120 190 440 200 Overloaded Moves . | . . . . Propulsion Burnouts . | . . . . Robots Hopped 3 | . . . 3 Cave-ins Triggered . | . . . . Exploration Rate (%) 23 | 6 46 25 15 Regions Visited 3 Branch Regions . Pre-discovered Areas . | . . . . Known Exits Taken . | . . . . Unknown Exits Taken 3 | 1 1 1 . Scrap Searched . | . . . . Spaces Dug . | . . . . Terrain Destroyed 115 | . 82 32 1 Melee . | . . . . Projectile 1 | . . . 1 AOE 114 | . 82 32 . Terrain Rammed . | . . . . Walls Destroyed . | . . . . Machines Disabled . | . . . . Actions | -11 -10 -9 -8 --------- Run | Yrd Mat Mat Mat Total 1406 | 128 399 437 442 Wait 28 | 1 19 4 4 Move 1211 | 110 351 394 356 Hop 3 | . . . 3 Pick Up 17 | 6 5 4 2 Fast Attach 35 | 6 3 10 16 Attach 7 | . . 4 3 Detach 8 | . 2 5 1 Swap 6 | . 1 2 3 Drop 23 | . 4 9 10 Fire 46 | 5 14 5 22 Melee 13 | . . . 13 Ram 2 | . . . 2 Kick 7 | . . . 7 Crush . | . . . . Escape Stasis . | . . . . Rewire . | . . . . Trap . | . . . . Miscellaneous . | . . . . Route ------- -11/Scrapyard -10/Materials -9/Materials -8/Materials History --------- Turn | Location | Event 33 | -11/Scrapyard | Discovered new exit (range 16) 152 | -11/Scrapyard | Entered Materials 303 | -10/Materials | Build established: Mutant 533 | -10/Materials | Discovered new exit (range 7) 661 | -10/Materials | Entered another Materials area 661 | -9/Materials | Evolved 2 slots: Propulsion x2 780 | -9/Materials | Lost 4 parts (1p1n2w) 1022 | -9/Materials | Discovered new exit (range 10) 1033 | -9/Materials | Entered another Materials area 1033 | -8/Materials | Evolved 2 slots: Utility x1, Weapon x1 1319 | -8/Materials | Lost 9 parts (2p2n3u2w) 1381 | -8/Materials | Core integrity fell below 50% 1392 | -8/Materials | Core integrity fell below 20% 1395 | -8/Materials | Destroyed by G-47 Trooper with Particle Gun Last Messages --------------- 01384_ Kicked L-31 Rogue. 01384_ Aluminum Leg destroyed. 01385_ Titanium Leg destroyed. 01385_ Kicked L-31 Rogue out of the way. 01386_ Dropped Spear. 01386_ R-06 Scavenger collects Spear. 01387_ Dropped Flight Unit. 01388_ Lgt. Nuclear Core destroyed. 01388_ Dropped Flight Unit. 01388_ Dropped Imp. Ion Engine. 01389_ Kicked L-31 Rogue. 01389_ R-06 Scavenger collects Flight Unit. 01389_ R-06 Scavenger collects Imp. Ion Engine. 01390_ Aluminum Leg destroyed. 01390_ Tractor Beam destroyed. 01390_ G-47 Trooper suffers critical hit (Burn). 01392_ Slammed into R-06 Scavenger. 01392_ Signal Interpreter broken. 01392_ Destabilizing: Short circuit. 01392_ R-06 Scavenger collects Flight Unit. Map ----- +----------------------------------------------------+ | # #???????????????????????????????????? | | ##############?????????????????????????????? | | #????# #?????????????????????????????? | | #????# #?????????????????????????????? | | ##/## #????# #####?????????????????????????? | | % # #?######## !!#?????????????????????????? | | # #?# ! # !!#?????????????????????????? | | # ### # //#?????????????????????????? | | " # # + #?????????????????????????? | | + # "T" # !!#?????????????????????????? | | "" # # """ # % % /!#?????????????????????????? | | "" #= # # ########??????????????????????? | | "" # ! ######## #= #??????????????????????? | | # #??????# # " #??????????????????????? | | ##### ##?????# # "" #??????????????????????? | | ???# ####### % + """ #??????????????????????? | | ???# # """ #??????????????????????? | | ???# # #??????????????????????? | | ???# ########??????????????????????? | | ??## ####### #?????????????????????????????? | | ??## ###?????# #????#######??????????????????? | | ???# #???????# #????#"""""#??????????????????? | | ???# #???????# o######""T""######/###?????????? | | ???# #???????# r% gr a a r ????????? | | ???# #???????# r%%=% g g ????????? | | ???# #???????# lg @g % ????????? | | ???# #???????##############+#######????????????? | | ???# #?????????????????????????????????????????? | | ???# ??????????????????????????????????????????? | | ???" ??????????????????????????????????????????? | | ???T ??????????????????????????????????????????? | | ???" ??????????????????????????????????????????? | | ???# ??????????????????????????????????????????? | | ???? ??????????????????????????????????????????? | | ?????????????????????????????????????????????????? | | ?????????????????????????????????????????????????? | | ?????????????????????????????????????????????????? | | ?????????????H???????????????????????????????????? | | ?????????????????????????????????????????????????? | | ?????????????????????????????????????????????????? | | ?????????????????????????????????????????????????? | | ?????????????????????????????????????????????????? | | ?????????????????????????????????????????????????? | | ?????????????????????????????????????????????????? | | ?????????????????????????????????????????????????? | | ?????????????????????????????????????????????????? | | ?????????????????????????????????????????????????? | | ?????????????????????????????????????????????????? | | ?????????????????????????????????????????????????? | | ?????????????????????????????????????????????????? | +----------------------------------------------------+ Best States ------------- Heat Dissipation 41 Energy Generation 14 Energy Capacity 265 Matter Stores 300 Matter Capacity 300 Sight Range 16 Terrain Scan Range 14 Terrain Scan Density 10 Armor Coverage 150 Resistance: EX 25 Evasion (%) 63 Melee Accuracy 5 Item Schematics ----------------- None Robot Schematics ------------------ None Fabricated ------------ Nothing Alien Tech Used ----------------- None Achievements -------------- None Challenges ------------ None Game ------ Seed ExpertTachyonPerforator Manual? 0 Play Time 00:49:06 Cumulative 4.3 hours Start 2025.03.24 @ 23:00:47 End 2025.03.24 @ 23:54:40 Sessions 3 Manual Loads 0 Difficulty Rogue Special Mode None Game No. 5 Rogue 5 Adventurer 0 Explorer 0 Win Type - Total 0 Types 0/0/0/0/0/0/0/0/0 Lore% 3 Gallery% 6 Achievement% 6 Wizard Run 0 Options --------- Layout 0 ASCII 1 Keyboard 1 Movement Vi Keybinds 0 Fullscreen 2 Font 18/SmallcapsGlow Map View 76x50 Zoom Use 0% Tactical HUD 1 Map Filters NONE Filters NONE Steam 1 RUN: 80133400-b24f-45a7-893b-6c3012fd7b40